[Event "*** Titled Tuesday Blitz"]
[Site "Chess.com"]
[Date "2021.04.20"]
[Round "10"]
[White "DFeco"]
[Black "allejam"]
[Result "0-1"]
[WhiteElo "2278"]
[BlackElo "2185"]
[TimeControl "180+1"]
[EndTime "11:52:34 PDT"]
[Termination "allejam won by resignation"]

1. c4 {[%clk 0:03:00.9]} 1... c5 {[%clk 0:02:59.2]} 2. g3 {[%clk 0:03:01.2]}
2... g6 {[%clk 0:02:58.9]} 3. Bg2 {[%clk 0:03:01.5]} 3... Bg7 {[%clk 0:02:59.5]}
4. Nc3 {[%clk 0:03:02.3]} 4... e5 {[%clk 0:03:00]} 5. e4 {[%clk 0:03:02.7]} 5...
Ne7 {[%clk 0:03:00.4]} 6. Nge2 {[%clk 0:03:03.2]} 6... O-O {[%clk 0:03:00.8]} 7.
O-O {[%clk 0:03:03.8]} 7... Nbc6 {[%clk 0:03:01.4]} 8. d3 {[%clk 0:03:04.4]}
8... d6 {[%clk 0:03:02]} 9. a3 {[%clk 0:03:02.5]} 9... h6 {[%clk 0:03:01.2]} 10.
Rb1 {[%clk 0:03:02.7]} 10... b6 {[%clk 0:03:00]} 11. b4 {[%clk 0:03:02.8]} 11...
Be6 {[%clk 0:03:00]} 12. h3 {[%clk 0:03:00.7]} 12... Kh7 {[%clk 0:02:59.8]} 13.
f4 {[%clk 0:03:00.3]} 13... f5 {[%clk 0:02:59.6]} 14. Kh2 {[%clk 0:02:58.9]}
14... Qd7 {[%clk 0:02:59.6]} 15. Nd5 {[%clk 0:02:57.1]} 15... Nd4 {[%clk
0:02:50.5]} 16. Nxe7 {[%clk 0:02:52.4]} 16... Qxe7 {[%clk 0:02:45.9]} 17. Nxd4
{[%clk 0:02:52.4]} 17... exd4 {[%clk 0:02:33.4]} 18. exf5 {[%clk 0:02:42]} 18...
Bxf5 {[%clk 0:02:34.3]} 19. Bxa8 {[%clk 0:02:40.7]} 19... Rxa8 {[%clk
0:02:35.2]} 20. Re1 {[%clk 0:02:39.6]} 20... Qb7 {[%clk 0:02:29.7]} 21. Bd2
{[%clk 0:02:34.3]} 21... Bxd3 {[%clk 0:02:29.2]} 22. Rc1 {[%clk 0:02:34]} 22...
Be4 {[%clk 0:02:22.1]} 23. Qg4 {[%clk 0:02:26.2]} 23... Re8 {[%clk 0:02:05.6]}
24. Qe2 {[%clk 0:02:09.4]} 24... d3 {[%clk 0:01:42.7]} 25. Qf1 {[%clk
0:02:04.3]} 25... Bd4 {[%clk 0:01:30.1]} 26. Rb1 {[%clk 0:01:50.2]} 26... Qf7
{[%clk 0:01:21.5]} 27. Rxe4 {[%clk 0:01:44.1]} 27... Rxe4 {[%clk 0:01:20.3]} 28.
Qxd3 {[%clk 0:01:44.5]} 28... Qe6 {[%clk 0:01:16.5]} 29. Rf1 {[%clk 0:01:42.4]}
29... Re2+ {[%clk 0:01:15.6]} 0-1

[Event "*** Titled Tuesday Blitz"]
[Site "Chess.com"]
[Date "2021.04.20"]
[Round "10"]
[White "TST2014"]
[Black "elextranjero00"]
[Result "1-0"]
[WhiteElo "2662"]
[BlackElo "2567"]
[TimeControl "180+1"]
[EndTime "11:52:41 PDT"]
[Termination "TST2014 won by resignation"]

1. d4 {[%clk 0:03:00.9]} 1... Nf6 {[%clk 0:02:58.3]} 2. c4 {[%clk 0:03:00.7]}
2... c5 {[%clk 0:02:58.3]} 3. d5 {[%clk 0:03:00.8]} 3... g6 {[%clk 0:02:58.1]}
4. Nc3 {[%clk 0:03:00.5]} 4... d6 {[%clk 0:02:58.5]} 5. e4 {[%clk 0:03:00.7]}
5... Bg7 {[%clk 0:02:59.1]} 6. Bd3 {[%clk 0:03:00.5]} 6... O-O {[%clk
0:02:58.5]} 7. h3 {[%clk 0:03:00.3]} 7... e6 {[%clk 0:02:58.1]} 8. Nf3 {[%clk
0:03:00.2]} 8... Na6 {[%clk 0:02:57.6]} 9. O-O {[%clk 0:02:59.7]} 9... Nc7
{[%clk 0:02:55]} 10. Bg5 {[%clk 0:02:54.2]} 10... h6 {[%clk 0:02:52]} 11. Be3
{[%clk 0:02:50.3]} 11... exd5 {[%clk 0:02:42.5]} 12. exd5 {[%clk 0:02:47]} 12...
b5 {[%clk 0:02:41.1]} 13. cxb5 {[%clk 0:02:46.9]} 13... Ncxd5 {[%clk 0:02:30.8]}
14. Nxd5 {[%clk 0:02:37.2]} 14... Nxd5 {[%clk 0:02:31.7]} 15. Bxg6 {[%clk
0:02:27]} 15... Be6 {[%clk 0:02:05.7]} 16. Bc2 {[%clk 0:01:51.3]} 16... Re8
{[%clk 0:01:36.6]} 17. Rb1 {[%clk 0:01:46.1]} 17... Nxe3 {[%clk 0:01:27.9]} 18.
fxe3 {[%clk 0:01:45.3]} 18... d5 {[%clk 0:01:27.7]} 19. Qd3 {[%clk 0:01:43.1]}
19... Qb6 {[%clk 0:01:18.5]} 20. Nh4 {[%clk 0:01:39.1]} 20... Kf8 {[%clk
0:00:46.9]} 21. Qh7 {[%clk 0:01:35.1]} 1-0

[Event "*** Titled Tuesday Blitz"]
[Site "Chess.com"]
[Date "2021.04.20"]
[Round "10"]
[White "Anna_ChessMate"]
[Black "Twitch_ElhamBlitz05"]
[Result "0-1"]
[WhiteElo "2582"]
[BlackElo "2739"]
[TimeControl "180+1"]
[EndTime "11:52:47 PDT"]
[Termination "Twitch_ElhamBlitz05 won by resignation"]

1. d4 {[%clk 0:02:58.8]} 1... Nf6 {[%clk 0:02:57.5]} 2. c4 {[%clk 0:02:59.5]}
2... e6 {[%clk 0:02:57.4]} 3. Nf3 {[%clk 0:02:57.9]} 3... c5 {[%clk 0:02:57.2]}
4. Nc3 {[%clk 0:02:50]} 4... cxd4 {[%clk 0:02:52.9]} 5. Nxd4 {[%clk 0:02:50.9]}
5... d5 {[%clk 0:02:52]} 6. e3 {[%clk 0:02:47.9]} 6... Nc6 {[%clk 0:02:50.4]} 7.
cxd5 {[%clk 0:02:46.3]} 7... exd5 {[%clk 0:02:48.8]} 8. Bb5 {[%clk 0:02:41.8]}
8... Bd7 {[%clk 0:02:48.7]} 9. O-O {[%clk 0:02:41.6]} 9... Bd6 {[%clk
0:02:47.7]} 10. b3 {[%clk 0:02:39.7]} 10... O-O {[%clk 0:02:46.8]} 11. Bb2
{[%clk 0:02:35.1]} 11... Rc8 {[%clk 0:02:43.6]} 12. Rc1 {[%clk 0:02:27.6]} 12...
Qe7 {[%clk 0:02:42.4]} 13. g3 {[%clk 0:02:19.1]} 13... Nxd4 {[%clk 0:02:31.1]}
14. Qxd4 {[%clk 0:02:13.1]} 14... Rxc3 {[%clk 0:02:24.4]} 15. Bxc3 {[%clk
0:01:57.1]} 15... Bxb5 {[%clk 0:02:24.1]} 16. Rfd1 {[%clk 0:01:57.7]} 16... a6
{[%clk 0:02:21.1]} 17. a4 {[%clk 0:01:54.8]} 17... Bc6 {[%clk 0:02:20.8]} 18.
Bb2 {[%clk 0:01:41]} 18... Re8 {[%clk 0:02:08.6]} 19. Qb6 {[%clk 0:00:45.4]}
19... h5 {[%clk 0:01:49.7]} 20. Bd4 {[%clk 0:00:17.5]} 20... Be5 {[%clk
0:01:49]} 0-1

[Event "*** Titled Tuesday Blitz"]
[Site "Chess.com"]
[Date "2021.04.20"]
[Round "10"]
[White "ukchessbomber"]
[Black "aaaao"]
[Result "0-1"]
[WhiteElo "2532"]
[BlackElo "2635"]
[TimeControl "180+1"]
[EndTime "11:52:48 PDT"]
[Termination "aaaao won by resignation"]

1. Nf3 {[%clk 0:03:00.9]} 1... Nf6 {[%clk 0:03:00]} 2. g3 {[%clk 0:03:01.8]}
2... g6 {[%clk 0:03:00.6]} 3. Bg2 {[%clk 0:03:02.6]} 3... Bg7 {[%clk 0:03:01.2]}
4. O-O {[%clk 0:03:03.1]} 4... O-O {[%clk 0:03:01.7]} 5. d3 {[%clk 0:03:02.1]}
5... d5 {[%clk 0:03:01.6]} 6. Nbd2 {[%clk 0:03:02.5]} 6... c5 {[%clk 0:03:02]}
7. c3 {[%clk 0:03:01.1]} 7... Nc6 {[%clk 0:03:02.2]} 8. Qc2 {[%clk 0:03:02]}
8... Qc7 {[%clk 0:03:01.9]} 9. e4 {[%clk 0:03:02.9]} 9... Rd8 {[%clk 0:03:02.1]}
10. Re1 {[%clk 0:03:00.9]} 10... h6 {[%clk 0:03:02]} 11. e5 {[%clk 0:02:59.3]}
11... Ng4 {[%clk 0:02:57.7]} 12. d4 {[%clk 0:02:59.2]} 12... Bf5 {[%clk
0:02:57.8]} 13. Qa4 {[%clk 0:02:30.1]} 13... cxd4 {[%clk 0:02:53]} 14. Nxd4
{[%clk 0:02:31]} 14... Nxd4 {[%clk 0:02:52.6]} 15. cxd4 {[%clk 0:02:30]} 15...
Bc2 {[%clk 0:02:43]} 16. Qa3 {[%clk 0:02:25.8]} 16... Qb6 {[%clk 0:02:38.7]} 17.
h3 {[%clk 0:02:04.1]} 17... Nxf2 {[%clk 0:02:37.7]} 18. Kxf2 {[%clk 0:02:00.6]}
18... Qxd4+ {[%clk 0:02:35.6]} 19. Qe3 {[%clk 0:01:27.8]} 19... Bxe5 {[%clk
0:02:35.2]} 20. Qxd4 {[%clk 0:01:07.9]} 20... Bxd4+ {[%clk 0:02:35.2]} 21. Ke2
{[%clk 0:01:08.4]} 21... Rac8 {[%clk 0:02:20.7]} 22. Nf3 {[%clk 0:00:49.4]}
22... Bg7 {[%clk 0:02:20.6]} 23. a4 {[%clk 0:00:43]} 23... Be4 {[%clk
0:02:13.6]} 24. Ra3 {[%clk 0:00:34.9]} 24... Rc2+ {[%clk 0:02:12.6]} 25. Kf1
{[%clk 0:00:33.4]} 25... Rdc8 {[%clk 0:02:12.1]} 26. Bf4 {[%clk 0:00:27.9]}
26... Rxb2 {[%clk 0:02:07.8]} 27. Nd2 {[%clk 0:00:14.9]} 27... Bxg2+ {[%clk
0:02:05.3]} 28. Kxg2 {[%clk 0:00:15.8]} 28... e5 {[%clk 0:02:06]} 0-1

[Event "*** Titled Tuesday Blitz"]
[Site "Chess.com"]
[Date "2021.04.20"]
[Round "10"]
[White "Sashadav97"]
[Black "dretch"]
[Result "0-1"]
[WhiteElo "2653"]
[BlackElo "2803"]
[TimeControl "180+1"]
[EndTime "11:53:06 PDT"]
[Termination "dretch won by resignation"]

1. d4 {[%clk 0:03:00.9]} 1... d5 {[%clk 0:02:59.9]} 2. c4 {[%clk 0:03:01.4]}
2... c6 {[%clk 0:03:00.1]} 3. Nf3 {[%clk 0:03:01.2]} 3... Nf6 {[%clk 0:03:00.5]}
4. Nc3 {[%clk 0:03:01.3]} 4... dxc4 {[%clk 0:03:00.7]} 5. a4 {[%clk 0:03:00.2]}
5... Bf5 {[%clk 0:02:59.4]} 6. e3 {[%clk 0:02:59.3]} 6... e6 {[%clk 0:02:59.4]}
7. Bxc4 {[%clk 0:02:59.9]} 7... Bb4 {[%clk 0:02:59.6]} 8. O-O {[%clk 0:03:00.4]}
8... O-O {[%clk 0:02:59.2]} 9. Qb3 {[%clk 0:02:54.3]} 9... c5 {[%clk 0:02:52]}
10. dxc5 {[%clk 0:02:36.2]} 10... a5 {[%clk 0:02:51.7]} 11. Nd4 {[%clk
0:02:30.6]} 11... Nbd7 {[%clk 0:02:30.2]} 12. c6 {[%clk 0:02:18.2]} 12... Nc5
{[%clk 0:02:28.8]} 13. Qd1 {[%clk 0:02:17.6]} 13... bxc6 {[%clk 0:02:27.5]} 14.
Nxf5 {[%clk 0:02:12.1]} 14... exf5 {[%clk 0:02:26.2]} 15. Qf3 {[%clk 0:02:12.7]}
15... g6 {[%clk 0:02:19.6]} 16. Rd1 {[%clk 0:02:05.5]} 16... Qc7 {[%clk
0:02:17.5]} 17. Bd2 {[%clk 0:02:04.5]} 17... Rfd8 {[%clk 0:02:10.3]} 18. Be1
{[%clk 0:02:02]} 18... Ng4 {[%clk 0:02:10.6]} 19. Qf4 {[%clk 0:01:52.2]} 19...
Qe7 {[%clk 0:01:39.8]} 20. Be2 {[%clk 0:01:10.5]} 20... Nb3 {[%clk 0:01:33.9]}
21. Rab1 {[%clk 0:01:06.9]} 21... Bd6 {[%clk 0:01:31.3]} 22. Rxd6 {[%clk
0:00:50.3]} 22... Qxd6 {[%clk 0:01:30.7]} 23. Qxd6 {[%clk 0:00:44.9]} 23... Rxd6
{[%clk 0:01:29]} 24. Bc4 {[%clk 0:00:40.6]} 24... Nd2 {[%clk 0:01:27.8]} 25.
Bxd2 {[%clk 0:00:37.9]} 25... Rxd2 {[%clk 0:01:28.7]} 26. Ne2 {[%clk 0:00:32.2]}
26... Ne5 {[%clk 0:01:27.3]} 0-1

[Event "*** Titled Tuesday Blitz"]
[Site "Chess.com"]
[Date "2021.04.20"]
[Round "10"]
[White "ckgchess"]
[Black "korbul"]
[Result "1-0"]
[WhiteElo "2700"]
[BlackElo "2581"]
[TimeControl "180+1"]
[EndTime "11:53:08 PDT"]
[Termination "ckgchess won by resignation"]

1. e4 {[%clk 0:03:00.9]} 1... c5 {[%clk 0:02:59.2]} 2. c3 {[%clk 0:03:00.2]}
2... d5 {[%clk 0:02:58.4]} 3. exd5 {[%clk 0:03:00.4]} 3... Nf6 {[%clk
0:02:58.4]} 4. Nf3 {[%clk 0:03:00.2]} 4... Nxd5 {[%clk 0:02:57.7]} 5. d4 {[%clk
0:03:00.7]} 5... cxd4 {[%clk 0:02:57.7]} 6. Qxd4 {[%clk 0:02:54.6]} 6... Nc6
{[%clk 0:02:53.7]} 7. Bb5 {[%clk 0:02:53.8]} 7... e6 {[%clk 0:02:53.2]} 8. O-O
{[%clk 0:02:50.9]} 8... Qb6 {[%clk 0:02:48]} 9. Qxb6 {[%clk 0:02:49.2]} 9...
axb6 {[%clk 0:02:45.5]} 10. Ne5 {[%clk 0:02:48]} 10... Bd7 {[%clk 0:02:42.9]}
11. Nxd7 {[%clk 0:02:47.9]} 11... Kxd7 {[%clk 0:02:42.8]} 12. Rd1 {[%clk
0:02:44.8]} 12... Kc8 {[%clk 0:02:36.2]} 13. c4 {[%clk 0:02:36.3]} 13... Nc7
{[%clk 0:02:34.7]} 14. Nc3 {[%clk 0:02:32.9]} 14... Bb4 {[%clk 0:02:31.7]} 15.
Be3 {[%clk 0:02:18.3]} 15... Bc5 {[%clk 0:02:23.2]} 16. Bxc5 {[%clk 0:02:14.6]}
16... bxc5 {[%clk 0:02:23]} 17. Bxc6 {[%clk 0:02:15.2]} 17... bxc6 {[%clk
0:02:22.4]} 18. Ne4 {[%clk 0:02:16.1]} 18... f6 {[%clk 0:01:57.5]} 19. Nxc5
{[%clk 0:02:12.8]} 19... Rd8 {[%clk 0:01:52.2]} 20. Rxd8+ {[%clk 0:02:07]} 20...
Kxd8 {[%clk 0:01:52]} 21. Rd1+ {[%clk 0:02:07.9]} 21... Kc8 {[%clk 0:01:50.2]}
22. a4 {[%clk 0:01:46.2]} 22... Rb8 {[%clk 0:01:44.9]} 23. b3 {[%clk 0:01:45.8]}
23... Ra8 {[%clk 0:01:34.2]} 24. Rd6 {[%clk 0:01:41]} 24... e5 {[%clk
0:01:29.5]} 25. g4 {[%clk 0:01:23.6]} 25... Ra5 {[%clk 0:01:23]} 26. Rxc6 {[%clk
0:01:18]} 26... Kb8 {[%clk 0:01:22.4]} 27. b4 {[%clk 0:01:11.3]} 27... Ra7
{[%clk 0:01:19.8]} 28. a5 {[%clk 0:01:04.8]} 28... Ne8 {[%clk 0:01:18.6]} 29. a6
{[%clk 0:00:57.2]} 29... Re7 {[%clk 0:01:17.9]} 30. b5 {[%clk 0:00:56.4]} 30...
e4 {[%clk 0:01:17]} 31. b6 {[%clk 0:00:53.7]} 1-0

[Event "*** Titled Tuesday Blitz"]
[Site "Chess.com"]
[Date "2021.04.20"]
[Round "10"]
[White "NTBT_DHS"]
[Black "mishanick"]
[Result "0-1"]
[WhiteElo "2726"]
[BlackElo "2972"]
[TimeControl "180+1"]
[EndTime "11:53:16 PDT"]
[Termination "mishanick won by checkmate"]

1. d4 {[%clk 0:03:00.9]} 1... Nf6 {[%clk 0:02:59.8]} 2. c4 {[%clk 0:03:01]} 2...
e6 {[%clk 0:02:59.2]} 3. Nf3 {[%clk 0:03:01.5]} 3... d5 {[%clk 0:02:59.3]} 4. g3
{[%clk 0:03:01.9]} 4... Bb4+ {[%clk 0:02:59]} 5. Bd2 {[%clk 0:03:01.9]} 5... Be7
{[%clk 0:02:57.8]} 6. Bg2 {[%clk 0:03:02.6]} 6... O-O {[%clk 0:02:57.4]} 7. O-O
{[%clk 0:03:03.2]} 7... c6 {[%clk 0:02:58.1]} 8. Qc2 {[%clk 0:03:03.5]} 8...
Nbd7 {[%clk 0:02:58.5]} 9. Bf4 {[%clk 0:03:03.2]} 9... b6 {[%clk 0:02:58.7]} 10.
cxd5 {[%clk 0:03:00]} 10... cxd5 {[%clk 0:02:59.6]} 11. Rc1 {[%clk 0:02:59.4]}
11... Ba6 {[%clk 0:02:59.2]} 12. Bc7 {[%clk 0:02:58.4]} 12... Qc8 {[%clk
0:02:58.7]} 13. e3 {[%clk 0:02:49.7]} 13... Qb7 {[%clk 0:02:57.4]} 14. Bf4
{[%clk 0:02:43.6]} 14... Rfc8 {[%clk 0:02:57.3]} 15. Nc3 {[%clk 0:02:44.2]}
15... Ne4 {[%clk 0:02:56.3]} 16. Qa4 {[%clk 0:02:36.5]} 16... Nxc3 {[%clk
0:02:47]} 17. Rxc3 {[%clk 0:02:33.9]} 17... Rxc3 {[%clk 0:02:46.7]} 18. bxc3
{[%clk 0:02:34.8]} 18... Rc8 {[%clk 0:02:46.2]} 19. Rc1 {[%clk 0:02:32.5]} 19...
Bd3 {[%clk 0:02:43.1]} 20. Nd2 {[%clk 0:02:23.5]} 20... b5 {[%clk 0:02:37.4]}
21. Qb3 {[%clk 0:02:23.3]} 21... Qa6 {[%clk 0:02:33.1]} 22. Bf1 {[%clk 0:01:59]}
22... Bxf1 {[%clk 0:02:31.9]} 23. Nxf1 {[%clk 0:01:56.6]} 23... g5 {[%clk
0:02:26.7]} 24. Be5 {[%clk 0:01:32.5]} 24... f6 {[%clk 0:02:26.4]} 25. Bf4
{[%clk 0:01:25]} 25... gxf4 {[%clk 0:02:26]} 26. exf4 {[%clk 0:01:25.8]} 26...
f5 {[%clk 0:02:24.5]} 27. Re1 {[%clk 0:01:25]} 27... Nf6 {[%clk 0:02:23.4]} 28.
Re5 {[%clk 0:01:21.5]} 28... Qc6 {[%clk 0:02:22]} 29. Ne3 {[%clk 0:01:20.3]}
29... Kf7 {[%clk 0:02:20.1]} 30. g4 {[%clk 0:01:15.1]} 30... Nxg4 {[%clk
0:02:10]} 31. Nxg4 {[%clk 0:01:14.8]} 31... Rg8 {[%clk 0:02:10.1]} 32. h3 {[%clk
0:01:13.5]} 32... fxg4 {[%clk 0:02:10.5]} 33. Qc2 {[%clk 0:01:05.1]} 33... gxh3+
{[%clk 0:02:09.7]} 34. Kh2 {[%clk 0:01:05]} 34... Rg6 {[%clk 0:02:08.7]} 35. Rh5
{[%clk 0:01:02.1]} 35... Kg7 {[%clk 0:02:06.7]} 36. Rxh3 {[%clk 0:00:56.1]}
36... Bd6 {[%clk 0:02:06.2]} 37. Qd2 {[%clk 0:00:49.1]} 37... Qc7 {[%clk
0:02:06.2]} 38. Kh1 {[%clk 0:00:45.2]} 38... Qf7 {[%clk 0:02:05.7]} 39. Qe2
{[%clk 0:00:43]} 39... Qf5 {[%clk 0:02:05.6]} 40. Qf3 {[%clk 0:00:22.7]} 40...
Qb1+ {[%clk 0:02:04.4]} 41. Kh2 {[%clk 0:00:22.7]} 41... Qg1# {[%clk 0:02:04.8]}
0-1

[Event "*** Titled Tuesday Blitz"]
[Site "Chess.com"]
[Date "2021.04.20"]
[Round "10"]
[White "topin8"]
[Black "GoValya"]
[Result "0-1"]
[WhiteElo "2189"]
[BlackElo "2304"]
[TimeControl "180+1"]
[EndTime "11:53:27 PDT"]
[Termination "GoValya won by resignation"]

1. e4 {[%clk 0:03:00.9]} 1... g6 {[%clk 0:02:58.7]} 2. d4 {[%clk 0:03:00.2]}
2... Bg7 {[%clk 0:02:58.4]} 3. Nf3 {[%clk 0:03:00.7]} 3... d5 {[%clk 0:02:57.3]}
4. e5 {[%clk 0:02:59.1]} 4... c5 {[%clk 0:02:57.1]} 5. c3 {[%clk 0:02:59]} 5...
cxd4 {[%clk 0:02:55.1]} 6. cxd4 {[%clk 0:02:58.7]} 6... Bg4 {[%clk 0:02:54.5]}
7. h3 {[%clk 0:02:55.8]} 7... Bxf3 {[%clk 0:02:54.1]} 8. Qxf3 {[%clk 0:02:55.8]}
8... Nc6 {[%clk 0:02:54.2]} 9. Bb5 {[%clk 0:02:54.7]} 9... e6 {[%clk 0:02:51.9]}
10. Bxc6+ {[%clk 0:02:33.3]} 10... bxc6 {[%clk 0:02:51.6]} 11. Qc3 {[%clk
0:02:33.7]} 11... Ne7 {[%clk 0:02:51]} 12. Nd2 {[%clk 0:02:28.7]} 12... O-O
{[%clk 0:02:49.4]} 13. Nb3 {[%clk 0:02:26.9]} 13... f6 {[%clk 0:02:44.6]} 14.
exf6 {[%clk 0:02:12.8]} 14... Bxf6 {[%clk 0:02:41.2]} 15. O-O {[%clk 0:02:13.2]}
15... Qd6 {[%clk 0:02:31.6]} 16. Be3 {[%clk 0:01:31.5]} 16... Nf5 {[%clk
0:02:27.2]} 17. Rac1 {[%clk 0:01:31.2]} 17... Rac8 {[%clk 0:02:24.7]} 18. g4
{[%clk 0:01:04.7]} 18... Nxe3 {[%clk 0:02:03.5]} 19. Qxe3 {[%clk 0:01:04.2]}
19... e5 {[%clk 0:02:03.5]} 20. f4 {[%clk 0:00:20]} 20... exd4 {[%clk
0:01:58.8]} 21. Nxd4 {[%clk 0:00:20.6]} 21... Rfe8 {[%clk 0:01:58.8]} 22. Qd2
{[%clk 0:00:13.4]} 22... Re4 {[%clk 0:01:52.3]} 23. Nb3 {[%clk 0:00:13.5]} 23...
Rce8 {[%clk 0:01:40.3]} 24. Rf2 {[%clk 0:00:13.1]} 24... Re3 {[%clk 0:01:36.3]}
25. Kg2 {[%clk 0:00:10.8]} 25... d4 {[%clk 0:01:34.4]} 26. Rc4 {[%clk 0:00:10]}
26... Qd5+ {[%clk 0:01:34.2]} 27. Kh2 {[%clk 0:00:09.2]} 27... Qxc4 {[%clk
0:01:34.1]} 28. Qc2 {[%clk 0:00:09.8]} 0-1

[Event "*** Titled Tuesday Blitz"]
[Site "Chess.com"]
[Date "2021.04.20"]
[Round "10"]
[White "LenkaPtacnikova"]
[Black "rachidhuilda"]
[Result "0-1"]
[WhiteElo "2168"]
[BlackElo "2264"]
[TimeControl "180+1"]
[EndTime "11:53:28 PDT"]
[Termination "rachidhuilda won by resignation"]

1. e4 {[%clk 0:03:00.9]} 1... d5 {[%clk 0:02:59.7]} 2. exd5 {[%clk 0:03:00.2]}
2... Qxd5 {[%clk 0:03:00.3]} 3. Nc3 {[%clk 0:02:59]} 3... Qa5 {[%clk 0:03:00.3]}
4. Nf3 {[%clk 0:02:58.1]} 4... c6 {[%clk 0:02:58.8]} 5. Bc4 {[%clk 0:02:57.2]}
5... Nf6 {[%clk 0:02:58]} 6. O-O {[%clk 0:02:56]} 6... Bf5 {[%clk 0:02:55.3]} 7.
d4 {[%clk 0:02:55.1]} 7... e6 {[%clk 0:02:55.1]} 8. Bd2 {[%clk 0:02:54.4]} 8...
Qc7 {[%clk 0:02:53.9]} 9. Qe2 {[%clk 0:02:31.7]} 9... Be7 {[%clk 0:02:45.9]} 10.
Rac1 {[%clk 0:02:23]} 10... O-O {[%clk 0:02:37.4]} 11. h3 {[%clk 0:02:22.7]}
11... h6 {[%clk 0:02:36.8]} 12. Rfe1 {[%clk 0:02:22]} 12... Nbd7 {[%clk
0:02:36.3]} 13. a3 {[%clk 0:02:17.3]} 13... Rfe8 {[%clk 0:02:36.2]} 14. Ne5
{[%clk 0:02:03.8]} 14... Nxe5 {[%clk 0:02:34.9]} 15. dxe5 {[%clk 0:02:03.4]}
15... Nd5 {[%clk 0:02:35.5]} 16. Bb3 {[%clk 0:01:42.7]} 16... Rad8 {[%clk
0:02:25.7]} 17. Nxd5 {[%clk 0:01:40.6]} 17... exd5 {[%clk 0:02:13.4]} 18. c4
{[%clk 0:01:40.2]} 18... d4 {[%clk 0:02:08]} 19. Qf3 {[%clk 0:01:35.4]} 19...
Be6 {[%clk 0:02:02.8]} 20. Bf4 {[%clk 0:01:28.1]} 20... c5 {[%clk 0:01:59.9]}
21. Ba4 {[%clk 0:01:24.9]} 21... Rf8 {[%clk 0:01:55.5]} 22. Qe4 {[%clk
0:01:17.8]} 22... d3 {[%clk 0:01:47]} 23. Red1 {[%clk 0:00:54]} 23... Rd4 {[%clk
0:01:33.6]} 24. Qf3 {[%clk 0:00:51]} 24... Bxc4 {[%clk 0:01:29.7]} 25. Be3
{[%clk 0:00:49.4]} 25... Bd5 {[%clk 0:01:21.1]} 26. Bxd4 {[%clk 0:00:36.3]}
26... Bxf3 {[%clk 0:01:19.2]} 27. gxf3 {[%clk 0:00:36.6]} 27... Qa5 {[%clk
0:01:09.7]} 0-1

[Event "*** Titled Tuesday Blitz"]
[Site "Chess.com"]
[Date "2021.04.20"]
[Round "10"]
[White "Jospem"]
[Black "Nuvas"]
[Result "1-0"]
[WhiteElo "2967"]
[BlackElo "2642"]
[TimeControl "180+1"]
[EndTime "11:53:34 PDT"]
[Termination "Jospem won by resignation"]

1. e4 {[%clk 0:03:00.9]} 1... c5 {[%clk 0:02:59.7]} 2. Nf3 {[%clk 0:03:01.3]}
2... d6 {[%clk 0:03:00.1]} 3. c3 {[%clk 0:03:01.9]} 3... Nf6 {[%clk 0:03:00.1]}
4. Be2 {[%clk 0:03:02.6]} 4... Nc6 {[%clk 0:02:59.5]} 5. d4 {[%clk 0:02:58.5]}
5... cxd4 {[%clk 0:02:54]} 6. cxd4 {[%clk 0:02:59.4]} 6... Nxe4 {[%clk 0:02:54]}
7. d5 {[%clk 0:02:59.7]} 7... Qa5+ {[%clk 0:02:54.2]} 8. Nc3 {[%clk 0:02:59.9]}
8... Ne5 {[%clk 0:02:53.4]} 9. Nxe5 {[%clk 0:02:53.9]} 9... Nxc3 {[%clk
0:02:52.2]} 10. bxc3 {[%clk 0:02:14.3]} 10... Qxc3+ {[%clk 0:02:50.3]} 11. Bd2
{[%clk 0:02:14.9]} 11... Qxe5 {[%clk 0:02:50.5]} 12. O-O {[%clk 0:02:15.8]}
12... Bd7 {[%clk 0:02:43.8]} 13. Rc1 {[%clk 0:02:05]} 13... Qxd5 {[%clk
0:02:31.1]} 14. Bf3 {[%clk 0:02:05.2]} 14... Qxa2 {[%clk 0:02:23.6]} 15. Bxb7
{[%clk 0:02:04.1]} 15... Rb8 {[%clk 0:02:23.7]} 16. Rc7 {[%clk 0:01:50.2]} 16...
Qb2 {[%clk 0:01:50.7]} 17. Qf3 {[%clk 0:01:22.5]} 17... Qxd2 {[%clk 0:01:28.7]}
18. Bc6 {[%clk 0:01:21.5]} 18... f6 {[%clk 0:01:08]} 19. Rxd7 {[%clk 0:01:21]}
19... Kf7 {[%clk 0:00:42]} 20. Bd5+ {[%clk 0:01:20.6]} 20... Ke8 {[%clk
0:00:39.3]} 21. Rxa7 {[%clk 0:01:19.7]} 21... g6 {[%clk 0:00:32.2]} 22. Be6
{[%clk 0:01:17.6]} 22... Qc2 {[%clk 0:00:26.2]} 23. Qb7 {[%clk 0:01:07.4]} 1-0

[Event "*** Titled Tuesday Blitz"]
[Site "Chess.com"]
[Date "2021.04.20"]
[Round "10"]
[White "GrigoriyM2001"]
[Black "viktorgen2021"]
[Result "1-0"]
[WhiteElo "2558"]
[BlackElo "2367"]
[TimeControl "180+1"]
[EndTime "11:53:34 PDT"]
[Termination "GrigoriyM2001 won by resignation"]

1. d4 {[%clk 0:02:59.5]} 1... Nf6 {[%clk 0:02:59.5]} 2. c4 {[%clk 0:03:00.1]}
2... e6 {[%clk 0:02:59.9]} 3. g3 {[%clk 0:03:00.1]} 3... c5 {[%clk 0:02:57.7]}
4. d5 {[%clk 0:02:59.8]} 4... exd5 {[%clk 0:02:56.4]} 5. cxd5 {[%clk 0:03:00.7]}
5... d6 {[%clk 0:02:57]} 6. Nc3 {[%clk 0:03:01.1]} 6... g6 {[%clk 0:02:57.2]} 7.
Nf3 {[%clk 0:03:01.8]} 7... Bg7 {[%clk 0:02:57.2]} 8. Bg2 {[%clk 0:03:02.4]}
8... O-O {[%clk 0:02:57.5]} 9. O-O {[%clk 0:03:03.1]} 9... Re8 {[%clk
0:02:57.2]} 10. Nd2 {[%clk 0:03:03.7]} 10... Na6 {[%clk 0:02:55.6]} 11. Nc4
{[%clk 0:02:59.4]} 11... Nc7 {[%clk 0:02:54.7]} 12. a4 {[%clk 0:02:59.3]} 12...
Rb8 {[%clk 0:02:45.8]} 13. Bf4 {[%clk 0:02:59.3]} 13... Bf8 {[%clk 0:02:44.5]}
14. e4 {[%clk 0:02:59]} 14... b6 {[%clk 0:02:36.5]} 15. e5 {[%clk 0:02:56.9]}
15... dxe5 {[%clk 0:02:25.1]} 16. Nxe5 {[%clk 0:02:55.9]} 16... Bb7 {[%clk
0:02:22]} 17. Nc6 {[%clk 0:02:54.8]} 17... Bxc6 {[%clk 0:02:19]} 18. dxc6 {[%clk
0:02:55.7]} 18... Qc8 {[%clk 0:02:18.6]} 19. Nb5 {[%clk 0:02:50.3]} 19... Re7
{[%clk 0:01:46.1]} 20. Re1 {[%clk 0:02:33.6]} 20... Nfe8 {[%clk 0:01:39]} 21.
Rxe7 {[%clk 0:02:30.1]} 21... Bxe7 {[%clk 0:01:39.9]} 22. Qd7 {[%clk 0:02:30.1]}
22... Bd8 {[%clk 0:01:24.1]} 23. Rd1 {[%clk 0:02:01.5]} 23... Nf6 {[%clk
0:01:09]} 24. Qxd8+ {[%clk 0:01:36]} 24... Qxd8 {[%clk 0:01:07]} 25. Rxd8+
{[%clk 0:01:36.9]} 25... Rxd8 {[%clk 0:01:07.5]} 26. Nxc7 {[%clk 0:01:31.7]}
26... Rd1+ {[%clk 0:00:49.8]} 27. Bf1 {[%clk 0:01:31.3]} 27... Kf8 {[%clk
0:00:45.8]} 28. Kg2 {[%clk 0:01:19.1]} 28... Ke7 {[%clk 0:00:43.2]} 29. Nb5
{[%clk 0:01:18.5]} 29... a6 {[%clk 0:00:35.1]} 30. c7 {[%clk 0:01:17.6]} 1-0